bitfinex/quotes_ETHUSD_20241119
["timestamp","ask_amount","ask_price","bid_price","bid_amount"]
[1732040847606,1.281379,3119.4,3118.7,1.28256]
[1732040847953,1.281379,3119.4,3118.9,1.2825]
[1732040848111,3.20564,3119.5,3118.9,1.2825]
[1732040848315,0.396054,3119.5,3119.1,1.28239]
[1732040848543,3.20523,3119.9,3119.3,1.28233]
[1732040848740,0.320523,3119.9,3119.3,1.28233]
[1732040848935,3.525763,3119.9,3119.3,1.28233]
[1732040849166,3.20524,3119.9,3119.3,1.28233]
[1732040849324,3.20514,3120.0,3119.4,2.10809]
[1732040850045,4.48596,3120.3,3119.4,2.10809]
[1732040850046,3.20499,3120.2,3119.6,1.28221]
[1732040850349,3.20579,3119.4,3118.8,1.28254]
[1732040850569,0.7861,3119.4,3118.8,1.28251]
[1732040850777,3.20566,3119.5,3118.8,1.28251]
[1732040850956,0.320566,3119.4,3118.8,1.28251]
[1732040851268,3.20526,3119.9,3119.1,1.28238]
[1732040851550,4.780955,3120.1,3119.4,1.28226]
[1732040851854,3.20532,3119.9,3119.2,2.04385]
[1732040852144,3.72318305,3119.9,3119.3,1.28233]
[1732040852551,0.51786305,3119.9,3119.3,1.28233]
[1732040852939,3.72310305,3119.9,3119.3,1.28233]
[1732040853139,1.28104,3120.3,3119.2,0.7615]
[1732040853367,3.96544,3120.5,3119.4,1.28226]
[1732040853552,3.20482,3120.3,3119.7,1.28217]
[1732040854127,4.48558,3120.5,3119.7,1.28217]
[1732040854325,3.20464,3120.5,3119.9,2.09655]
[1732040854527,3.653198,3120.5,3119.9,2.09655]
[1732040854727,0.448558,3120.5,3120.0,1.28205]
[1732040855429,0.448558,3120.5,3119.9,0.8145]
[1732040855430,3.653238,3120.5,3119.9,0.8145]
[1732040855764,3.20472,3120.4,3119.9,0.8145]
[1732040855942,0.448558,3120.5,3119.9,2.09659]
[1732040856145,3.653238,3120.5,3119.9,2.09659]
[1732040856529,3.20475,3120.4,3119.9,0.8145]
[1732040856728,0.448558,3120.5,3119.9,2.09658]
[1732040857281,3.20515,3120.0,3119.5,0.772]
[1732040857483,3.205,3120.2,3119.5,0.772]
[1732040857773,3.20516,3120.0,3119.5,0.772]
[1732040857929,0.320516,3119.9,3119.5,0.772]
[1732040858135,3.2054,3119.8,3119.5,0.772]
[1732040858729,3.20544,3119.7,3119.5,0.772]
[1732040859354,3.20544,3119.7,3119.2,0.772]
[1732040859544,3.5580356,3119.7,3119.2,0.772]
[1732040859745,0.3525956,3119.7,3119.2,0.772]
[1732040860482,3.5580856,3119.7,3119.2,0.772]
[1732040860769,3.20506,3120.1,3119.4,1.28227]
[1732040860976,3.20506,3120.1,3119.3,1.28229]
[1732040861269,3.20506,3120.1,3119.5,1.28222]
[1732040861458,3.20482,3120.3,3119.7,1.28217]
[1732040861864,3.20492,3120.2,3119.5,1.28222]
[1732040862075,3.20492,3120.2,3119.6,1.28221]
[1732040862242,3.20482,3120.3,3119.7,1.28216]
[1732040862542,3.20469,3120.5,3119.9,1.28206]
[1732040862734,3.20469,3120.5,3120.0,1.28205]
[1732040863138,3.20469,3120.5,3119.9,1.28206]
[1732040863658,3.20489,3120.3,3119.8,0.7976]
[1732040863870,3.20505,3120.1,3119.8,0.7976]
[1732040864169,3.20513,3120.0,3119.8,0.7976]
[1732040864536,3.20487,3120.3,3119.8,2.07971]
[1732040864737,3.20462,3120.5,3119.8,2.07971]
[1732040864738,3.20472,3120.4,3119.8,2.07971]
[1732040864942,3.20444,3120.7,3120.0,1.28201]
[1732040865271,3.20461,3120.5,3120.0,1.28201]
[1732040865671,3.20432,3120.8,3120.0,1.28201]
[1732040865880,3.605252,3120.8,3120.2,1.28194]
[1732040866082,3.605252,3120.8,3119.8,2.415911]
[1732040866083,0.400932,3120.8,3119.8,2.415911]
[1732040866292,3.20457,3120.6,3120.0,1.28202]
[1732040866446,3.20469,3120.5,3119.9,1.28208]
[1732040866638,3.20474,3120.4,3119.8,0.7976]
[1732040866846,3.20518,3120.0,3119.8,0.7976]
[1732040867157,3.20516,3120.0,3119.5,0.7976]
[1732040867343,0.64102,3120.0,3119.5,0.7976]
[1732040867542,3.20504,3120.1,3119.5,0.7976]
[1732040867778,3.20534,3119.8,3119.5,0.7976]
[1732040867984,3.20553,3119.6,3119.5,0.7976]
[1732040868717,3.20534,3119.8,3119.5,0.7976]
[1732040868863,0.320534,3119.7,3119.5,0.7976]
[1732040869055,3.525984,3119.7,3119.5,0.7976]
[1732040869698,0.320534,3119.7,3119.5,0.7976]
[1732040870196,3.20507,3120.1,3119.5,2.07985]
[1732040870363,3.20487,3120.3,3119.7,1.28215]
[1732040870561,0.8222,3120.6,3119.7,1.28215]
[1732040870562,3.20473,3120.4,3119.7,1.28215]
[1732040870758,3.20462,3120.5,3119.9,1.28205]
[1732040870997,3.20462,3120.5,3120.0,0.7594]
[1732040872076,3.20484,3120.3,3120.0,0.7594]
[1732040873164,3.20465,3120.5,3120.0,2.04142]
[1732040873491,3.20452,3120.6,3120.0,0.7594]
[1732040873696,3.20469,3120.5,3120.0,0.7594]
[1732040874008,3.20438,3120.8,3120.0,2.04142]
[1732040874159,0.761,3121.2,3120.0,2.04144]
[1732040874474,3.20459,3120.6,3120.0,2.04142]
[1732040874874,3.20435,3120.8,3120.0,2.04142]
[1732040875081,3.20449,3120.7,3120.1,1.28198]
[1732040875280,3.20457,3120.6,3120.1,1.28198]
[1732040875629,3.20458,3120.6,3120.0,0.7594]
[1732040875783,0.320457,3120.5,3120.0,0.7594]
[1732040875986,3.20478,3120.4,3120.0,0.7594]
[1732040876839,3.20494,3120.2,3120.0,0.7594]
[1732040877186,3.20497,3120.2,3120.0,0.7594]
[1732040877709,3.20502,3120.1,3120.0,0.7594]
[1732040877903,3.20502,3120.1,3119.4,1.28227]
[1732040877904,3.846019,3120.1,3119.6,2.0506]
[1732040878135,3.20502,3120.1,3119.6,2.0506]
[1732040878437,3.20483,3120.3,3119.7,1.28213]
[1732040878843,0.7938,3120.8,3119.6,0.7684]
[1732040879009,3.2051,3120.1,3119.6,0.7684]
[1732040879377,6.41019,3120.1,3119.6,0.7684]
[1732040879497,3.20509,3120.1,3119.6,0.7684]
[1732040879693,3.20486,3120.3,3119.8,1.28211]
[1732040880303,3.20499,3120.2,3119.6,2.05061]
[1732040880504,3.20499,3120.2,3119.6,2.05059]
[1732040880835,3.20486,3120.3,3119.6,2.05059]
[1732040880836,3.20486,3120.3,3119.8,1.28211]
[1732040880997,3.20463,3120.5,3119.9,1.28209]
[1732040881194,3.2046,3120.6,3120.0,0.8061]
[1732040881613,3.20473,3120.4,3120.0,0.8061]
[1732040881796,3.20458,3120.6,3120.1,1.28201]
[1732040882399,6.40916,3120.6,3120.1,1.28201]
[1732040882619,3.20461,3120.5,3120.0,2.08814]
[1732040882813,3.20458,3120.6,3120.0,0.8061]
[1732040883017,3.20436,3120.8,3120.0,2.08812]
[1732040883214,3.20454,3120.6,3120.0,2.08812]
[1732040883440,3.20466,3120.5,3120.0,2.08812]
[1732040884103,0.320436,3120.8,3120.2,1.28195]
[1732040884305,3.20441,3120.7,3120.2,1.28195]
[1732040884529,3.20452,3120.6,3120.0,2.08812]
[1732040884898,3.20441,3120.7,3120.1,1.28199]
[1732040885201,3.20462,3120.5,3120.0,2.08812]
[1732040885624,3.524991,3120.6,3120.1,1.28199]
[1732040885840,3.20455,3120.6,3120.1,1.28199]
[1732040886039,3.2043,3120.8,3120.0,2.08812]
[1732040886230,3.52473,3120.8,3120.0,2.08812]
[1732040886426,3.20456,3120.6,3120.0,2.08812]
[1732040886640,3.20443,3120.7,3120.2,1.28196]
[1732040886804,3.556916,3120.7,3120.2,1.28196]
[1732040887335,3.20461,3120.5,3120.0,2.08814]
[1732040887536,3.20461,3120.5,3120.0,3.37016]
[1732040887761,3.20461,3120.5,3120.0,2.08812]
[1732040889249,0.6761526,3120.5,3120.0,0.8061]
[1732040889450,3.20441,3120.7,3120.0,0.8061]
[1732040889664,3.20497,3120.2,3120.0,0.8061]
[1732040889882,2.87928631,3121.0,3119.7,0.7963]
[1732040889883,3.2051,3120.1,3119.7,0.7963]
[1732040890040,3.20545,3119.7,3119.1,1.28239]
[1732040890437,3.20528,3119.9,3119.2,1.28237]
[1732040890733,0.7876,3120.4,3119.1,0.207873]
[1732040890884,3.20488,3120.3,3119.9,0.7742]
[1732040891085,4.01096,3120.7,3119.9,0.7742]
[1732040891303,6.40855,3120.9,3120.0,1.28205]
[1732040891519,3.20447,3120.7,3120.2,1.28194]
[1732040891817,3.20447,3120.7,3120.0,1.487645]
[1732040892125,3.20424,3120.9,3120.2,1.28193]
[1732040892285,3.20424,3120.9,3120.4,2.05608]
[1732040892914,3.20402,3121.1,3120.5,1.28182]
[1732040893276,0.8065,3121.4,3120.4,0.7742]
[1732040893609,3.20421,3120.9,3120.4,0.7742]
[1732040893781,3.20404,3121.1,3120.4,0.7742]
[1732040893978,3.20419,3121.0,3120.4,2.05608]
[1732040894375,3.845003,3121.0,3120.4,0.7742]
[1732040894578,3.20399,3121.1,3120.5,1.28184]
[1732040894816,3.20384,3121.3,3120.6,1.28179]
[1732040895012,3.20384,3121.3,3120.4,2.05606]
[1732040895013,3.20384,3121.3,3120.7,1.28175]
[1732040895318,3.20384,3121.3,3119.8,3.01]
[1732040895319,0.7639,3121.1,3120.0,5.0]
[1732040895480,0.717181,3121.0,3120.0,5.0]
[1732040895676,3.96796,3121.1,3120.4,1.28187]
[1732040895883,0.7564,3121.7,3120.6,0.8119]
[1732040896122,3.20355,3121.6,3120.9,1.28164]
[1732040896321,3.20331,3121.8,3121.1,1.28159]
[1732040896519,3.20331,3121.8,3121.2,2.09343]
[1732040896690,3.20294,3122.2,3121.6,1.28136]
[1732040897027,3.95911,3122.4,3121.6,1.28136]
[1732040897204,3.20271,3122.4,3121.9,0.7797]
[1732040897410,3.20271,3122.4,3121.9,2.06097]
[1732040897728,3.67785384,3122.4,3121.9,0.7797]
[1732040898231,3.20277,3122.3,3121.9,0.7797]
[1732040898535,3.20258,3122.5,3121.9,2.06095]
[1732040898829,3.20276,3122.3,3121.1,5.0]
[1732040898980,3.20276,3122.3,3121.4,2.05264]
[1732040899182,0.396436,3122.2,3121.5,1.28143]
[1732040899408,3.2028,3122.3,3121.6,1.28138]
[1732040899630,0.7616,3122.4,3121.6,1.28138]
[1732040899809,3.96428,3122.4,3121.6,1.614782]
[1732040900009,3.20287,3122.2,3121.5,1.28141]
[1732040900325,3.20287,3122.2,3121.5,1.28142]
[1732040900530,3.20278,3122.3,3121.7,1.28133]
[1732040901040,3.20277,3122.3,3121.6,1.486642]
[1732040901186,0.7963,3122.7,3122.0,2.09729]
[1732040901524,3.20246,3122.6,3122.0,0.8161]
[1732040901680,3.20242,3122.7,3122.0,2.09732]
[1732040901881,0.399845,3122.9,3122.1,1.28118]
[1732040902123,0.399845,3122.9,3122.0,2.09732]
[1732040902124,3.20227,3122.8,3122.0,2.09732]
[1732040902435,6.40444,3122.9,3122.1,1.28116]
[1732040902615,3.2022,3122.9,3122.2,0.209726]
[1732040902919,3.20242,3122.7,3122.2,0.209726]
[1732040903117,3.20242,3122.7,3122.0,2.09732]
[1732040903319,3.20215,3122.9,3122.0,0.8161]
[1732040903529,3.20215,3122.9,3122.2,1.28114]
[1732040903726,3.20228,3122.8,3122.2,0.337846]
[1732040903895,3.20237,3122.7,3122.2,0.337846]
[1732040904222,3.20257,3122.5,3122.0,0.8161]
[1732040904380,3.20237,3122.7,3122.0,2.09731]
[1732040904575,3.20218,3122.9,3122.1,0.209736]
[1732040904825,3.20238,3122.7,3122.1,1.490886]
[1732040905022,3.20276,3122.3,3121.6,0.205262]
[1732040905226,3.20315,3122.0,3121.4,0.7549]
[1732040905519,3.20291,3122.2,3121.5,1.28143]
[1732040906080,3.20291,3122.2,3121.4,0.7549]
[1732040906081,3.20291,3122.2,3121.4,2.03634]
[1732040906286,3.20315,3122.0,3121.4,0.7549]
[1732040906489,4.7601,3124.8,3122.0,3.84366]
[1732040906832,10.68513451,3128.6,3126.0,0.01]
[1732040906984,7.70455119,3128.1,3127.9,15.84533102]
[1732040907191,1.5858239,3133.2,3133.0,5.01]
[1732040907395,1.5858239,3133.2,3132.6,0.01]
[1732040907396,1.02652322,3133.0,3132.8,1.27678]
[1732040907677,1.02652322,3133.0,3132.9,0.55]
[1732040908002,1.02652322,3133.0,3132.9,8.1630609]
[1732040908331,1.02652322,3133.0,3132.9,0.55]
[1732040908535,1.02652322,3133.0,3132.8,8.16371602]
[1732040908739,1.02652322,3133.0,3132.8,0.55]
[1732040909085,1.02652322,3133.0,3132.7,7.933]
[1732040909289,1.01352322,3133.0,3132.8,8.70064103]
[1732040909600,1.01352322,3133.0,3132.9,10.87580129]
[1732040910397,1.01352322,3133.0,3131.6,5.0]
[1732040910597,0.43479191,3132.9,3131.7,0.55]
[1732040910811,1.01352322,3133.0,3131.7,0.55]
[1732040911017,1.01352322,3133.0,3131.5,2.92]
[1732040911210,3.0,3132.9,3131.5,2.92]
[1732040911383,1.01352322,3133.0,3131.5,2.92]
[1732040911583,0.01,3132.3,3131.5,2.92]
[1732040911893,3.19277,3132.1,3131.5,2.92]
[1732040912121,3.0,3132.4,3129.8,0.01]
[1732040912122,0.01,3131.9,3129.8,0.01]
[1732040912386,0.01,3132.0,3130.5,2.92]
[1732040912582,0.01,3132.5,3130.5,2.92]
[1732040912823,3.0,3132.3,3130.9,1.27758]
[1732040913220,3.676226,3132.4,3130.8,1.27762]
[1732040913387,3.5804446,3132.3,3130.6,1.2777]
[1732040913588,3.0,3132.2,3130.5,2.92]
[1732040913883,0.65804446,3132.1,3130.8,1.27762]
[1732040914083,3.0,3132.2,3130.8,1.27762]
[1732040914535,3.5804346,3132.3,3130.8,1.27762]
[1732040914536,0.3878746,3132.3,3131.1,1.27749]
[1732040914827,3.0,3132.4,3130.9,1.27758]
[1732040915003,6.19247,3132.4,3130.9,1.27758]
[1732040915248,6.19247,3132.4,3131.0,0.07300269]
[1732040915524,3.19159,3133.3,3131.2,5.0]
[1732040915692,3.1915,3133.4,3131.8,1.2772]
[1732040915890,3.2015,3133.4,3131.9,0.07298171]
[1732040916424,0.01,3133.4,3131.9,0.07298171]
[1732040916629,0.01,3133.6,3132.1,1.27709]
[1732040917000,0.01,3133.4,3132.2,0.07297472]
[1732040917166,3.20129,3133.6,3132.2,0.07297472]
[1732040917462,0.7738,3133.7,3132.3,1.27701]
[1732040917625,3.19082,3134.0,3132.4,0.07297006]
[1732040917810,0.01,3134.1,3132.7,1.27683]
[1732040918013,0.01,3134.3,3132.9,1.27674]
[1732040918320,0.7823,3134.5,3133.0,0.07295608]
[1732040918750,3.97263,3134.5,3133.0,0.07295608]
[1732040918926,3.98263,3134.5,3133.0,0.07295608]
[1732040919309,3.1906,3134.2,3133.0,0.07295608]
[1732040920151,0.7923,3134.5,3133.0,0.07295608]
[1732040920358,3.0,3134.2,3133.0,0.07295608]
[1732040920649,3.0,3134.0,3133.0,0.07295608]
[1732040921371,3.0,3134.4,3133.0,0.07295608]
[1732040921529,6.19064,3134.2,3133.0,1.34968608]
[1732040921728,6.19065,3134.2,3133.0,1.34968608]
[1732040921929,3.19081,3134.0,3133.0,0.07295608]
[1732040922180,3.0,3133.9,3133.0,0.07295608]
[1732040922476,6.19091,3133.9,3133.0,0.07295608]
[1732040922686,3.3343659,3133.1,3133.0,0.07295608]
[1732040922857,3.66780249,3133.1,3133.0,0.07295608]
[1732040923168,0.47608249,3133.1,3133.0,0.07295608]
[1732040923324,0.1426459,3133.1,3133.0,0.07295608]
[1732040926029,0.1426459,3133.1,3133.0,1.03049608]
[1732040926254,0.7887,3135.3,3133.3,0.01]
[1732040926440,3.19016,3134.7,3133.4,0.07294677]
[1732040926754,3.18979,3135.0,3133.8,0.9573]
[1732040927031,0.398819,3135.1,3133.9,0.07293513]
[1732040927231,0.7511,3135.9,3134.2,0.95715]
[1732040927541,3.18951,3135.3,3134.4,0.95709]
[1732040927768,0.318951,3135.2,3134.6,0.95705]
[1732040927984,0.318951,3135.2,3133.7,0.9573]
[1732040927985,3.18909,3135.7,3134.7,0.07291652]
[1732040928287,1.27152022,3136.2,3135.1,0.95689]
[1732040928596,3.3312159,3136.2,3135.2,1.02975489]
[1732040928819,0.1426459,3136.2,3135.3,0.07290257]
[1732040929011,3.18882,3136.0,3135.3,0.07290257]
[1732040929298,3.3312259,3136.2,3135.3,0.07290257]
[1732040929599,0.1426459,3136.2,3135.9,0.95665]
[1732040929766,0.1426459,3136.2,3136.0,0.13665596]
[1732040929972,0.1426459,3136.2,3135.5,2.92]
[1732040929973,0.1426459,3136.2,3136.1,0.07288397]
[1732040932053,3.0,3136.2,3136.1,0.07288397]
[1732040932189,3.0,3135.3,3134.5,0.95707]
[1732040932356,0.618938,3135.2,3134.6,0.07291885]
[1732040932703,3.0,3135.3,3134.6,0.07291885]
[1732040932863,6.1895,3135.3,3134.6,0.07291885]
[1732040933061,0.61895,3135.2,3134.6,0.07291885]
[1732040933261,0.61895,3135.2,3134.6,1.02994885]
[1732040933456,3.0,3135.7,3134.6,1.02996885]
[1732040933764,0.01,3136.2,3134.9,0.95694]
[1732040934106,3.55,3135.8,3135.0,1.91386]
[1732040934413,0.55,3135.9,3135.0,1.91386]
[1732040934574,1.223867,3135.9,3134.7,1.91405]
[1732040934759,3.18847,3136.3,3135.0,1.91387]
[1732040934959,0.399977,3136.2,3135.4,1.91361]
[1732040935160,1.51546422,3136.9,3135.4,1.91362]
[1732040935469,3.18839,3136.4,3135.2,1.91374]
[1732040935799,0.01,3136.7,3134.9,1.91393]
[1732040935984,3.18886,3136.0,3134.9,1.91393]
[1732040936297,3.18902,3135.8,3134.8,0.07291419]
[1732040936475,3.18886,3136.0,3135.0,1.91383]
[1732040936476,0.318902,3135.7,3135.0,1.91383]
[1732040936799,0.318902,3135.7,3134.8,0.07291419]
[1732040936800,0.55,3136.1,3135.1,1.9138]
[1732040936962,3.55,3135.9,3135.1,1.9138]
[1732040937166,3.55,3135.9,3134.8,1.98685419]
[1732040937167,4.278881,3135.9,3134.9,1.91392]
[1732040937765,3.55,3135.7,3134.9,1.91392]
[1732040938111,3.55,3135.7,3134.8,1.98685419]
[1732040938288,0.55,3135.9,3134.8,1.91397]
[1732040938507,3.18847,3136.3,3135.3,1.91365]
[1732040938508,3.55,3136.2,3135.3,1.91365]
[1732040938686,0.55,3136.3,3135.4,1.91358]
[1732040939003,0.8298,3137.0,3135.5,1.91356]
[1732040939227,0.8098,3137.0,3135.7,1.9134]
[1732040939411,3.18796,3136.8,3135.1,1.9138]
[1732040939619,3.18848,3136.3,3135.4,1.9136]
[1732040939819,3.18848,3136.3,3134.7,1.91401]
[1732040939974,3.18859,3136.2,3135.2,1.9137]
[1732040940174,3.18867,3136.1,3135.2,1.9137]
[1732040940412,0.637707,3136.2,3135.3,1.91363]
[1732040940634,0.55,3136.1,3135.0,1.91387]
[1732040940772,6.18845,3136.4,3135.4,1.91362]
[1732040941131,3.18878,3136.0,3135.2,1.9137]
[1732040941423,0.01,3136.9,3134.7,5.0]
[1732040941424,3.0,3136.1,3134.9,5.0]
[1732040941623,3.0,3136.4,3135.3,0.06378057]
[1732040941787,3.18786,3136.9,3135.5,1.91354]
[1732040941976,3.18884,3136.0,3135.1,1.91376]
[1732040942173,3.0,3135.7,3135.0,1.91385]
[1732040942386,3.18909,3135.7,3135.0,1.91385]
[1732040942685,3.0,3135.9,3135.2,1.91373]
[1732040942871,3.18897,3135.8,3135.7,0.04047199]
[1732040943086,3.18833,3136.5,3135.7,0.04047199]
[1732040943087,3.18835,3136.5,3135.7,0.04047199]
[1732040943277,3.18826,3136.6,3135.7,1.95385199]
[1732040943472,3.18866,3136.2,3135.7,0.04047199]
[1732040943677,3.18888,3135.9,3135.7,0.04047199]
[1732040944216,3.1881,3136.7,3136.0,1.27549]
[1732040944533,3.18777,3137.0,3136.3,1.27538]
[1732040944822,3.18776,3137.0,3136.4,1.27534]
[1732040944982,3.18797,3136.8,3136.2,1.27541]
[1732040945177,3.18735,3137.4,3136.1,1.27545]
[1732040945377,2.39098316,3137.6,3136.4,1.27534]
[1732040945378,3.18775,3137.1,3136.4,1.27534]
[1732040945583,3.18748,3137.3,3136.5,1.2753]
[1732040945780,3.18769,3137.1,3136.5,1.2753]
[1732040946002,3.18748,3137.3,3136.5,1.2753]
[1732040946204,3.18755,3137.2,3136.5,1.2753]
[1732040946542,4.73468043,3137.5,3136.7,1.27518]
[1732040946733,4.73468043,3137.5,3136.9,2e-07]
[1732040946933,1.57133267,3137.4,3136.9,1.8e-07]
[1732040947326,1.54742043,3137.5,3136.6,6.27523]
[1732040947659,1.54742043,3137.5,3136.9,3.4e-07]
[1732040947815,0.08574501,3137.6,3136.4,1.27534]
[1732040948017,1.59582704,3137.9,3137.4,1.2749]
[1732040948352,1.59582704,3137.9,3137.3,1.27494]
[1732040948559,5.26674904,3137.9,3137.2,1.27499]
[1732040948849,5.26674904,3137.9,3137.4,1.27492]
[1732040948850,1.59582704,3137.9,3137.4,1.27492]
[1732040949065,1.59582704,3137.9,3137.4,1.27493]
[1732040949353,1.59582704,3137.9,3137.5,1.27486]
[1732040949656,1.59582704,3137.9,3137.2,0.6595]
[1732040949657,4.75539849,3137.8,3137.2,1.93451]
[1732040949847,3.18701,3137.8,3137.2,1.93451]
[1732040950018,3.18733,3137.5,3137.2,0.6595]
[1732040950224,3.18779,3137.0,3136.7,0.6595]
[1732040950517,0.55,3136.9,3136.7,0.6595]
[1732040950721,0.55,3137.1,3136.7,0.6595]
[1732040950930,3.73752,3137.3,3136.7,1.93471]
[1732040951144,0.55,3137.1,3136.7,0.6595]
[1732040951530,3.73833,3136.5,3136.1,0.6595]
[1732040951867,3.18878,3136.0,3135.5,0.6595]
[1732040952155,0.55,3135.9,3135.5,0.6595]
[1732040952373,3.73894,3135.9,3135.5,0.6595]
[1732040952669,0.373894,3135.9,3135.5,0.6595]
[1732040952817,3.18888,3135.9,3135.5,0.6595]
[1732040953013,0.55,3135.8,3135.5,0.6595]
[1732040953214,6.18863,3136.2,3135.5,0.6595]
[1732040953467,0.55,3136.3,3135.5,0.6595]
[1732040953822,0.55,3136.5,3135.5,0.6595]
[1732040954136,0.55,3135.8,3135.5,0.6595]
[1732040954658,3.18867,3136.1,3135.6,0.95675]
[1732040954659,3.55,3136.1,3135.6,0.95675]
[1732040955022,3.55,3136.3,3135.5,5.6595]
[1732040955362,3.18808,3136.7,3136.1,0.95659]
[1732040955976,3.18833,3136.5,3135.9,0.95665]
[1732040956461,3.18818,3136.6,3136.0,0.95662]
[1732040956645,0.55,3136.4,3135.9,0.98826093]
[1732040956846,0.55,3136.4,3135.9,0.95665]
[1732040957220,0.55,3136.6,3135.9,0.95665]
[1732040957451,0.55,3136.6,3135.8,0.98829093]
[1732040957654,0.55,3136.4,3135.9,0.95664]
[1732040957864,3.506393,3137.2,3136.5,0.95645]
[1732040958165,3.506393,3137.2,3135.9,5.01]
[1732040958166,3.0,3137.7,3136.6,0.03160286]
[1732040958350,3.18746,3137.3,3136.6,1.61593]
[1732040958562,3.18746,3137.3,3136.6,0.6595]
[1732040958774,3.18786,3136.9,3136.6,0.6595]
[1732040959027,3.18853,3136.3,3135.7,0.95669]
[1732040959128,0.318786,3136.8,3135.2,0.6695]
[1732040959129,3.18874,3136.1,3135.3,5.95684]
[1732040959422,0.55,3136.0,3135.5,0.95678]
[1732040959623,0.55,3136.4,3135.3,5.0]
[1732040959825,3.18807,3136.7,3136.0,0.95663]
[1732040960131,3.18786,3136.9,3136.1,0.6595]
[1732040960325,3.18786,3136.9,3136.2,0.95655]
[1732040960660,3.18768,3137.1,3136.2,0.95654]
[1732040960832,3.18775,3137.0,3136.1,1.6161]
[1732040961037,3.18797,3136.8,3136.1,1.61607]
[1732040961435,0.55,3136.7,3136.3,0.95653]
[1732040961638,0.55,3136.7,3136.1,1.61607]
[1732040961639,0.55,3136.7,3136.4,0.02183186]
[1732040961847,0.55,3137.0,3136.2,0.97839186]
[1732040962174,0.55,3136.6,3136.2,0.02183186]
[1732040962326,0.55,3136.6,3136.3,0.95651]
[1732040962671,3.70611016,3136.8,3136.2,0.95655]
[1732040962870,3.18841,3136.4,3136.2,0.02538883]
[1732040963025,3.18843,3136.4,3136.1,0.6595]
[1732040963225,3.18857,3136.2,3136.1,0.6595]
[1732040963424,3.18826,3136.5,3136.1,0.6595]
[1732040963642,3.18838,3136.4,3136.1,0.6595]
[1732040963959,3.18826,3136.5,3136.1,0.6595]
[1732040964152,3.1884,3136.4,3136.1,0.6595]
[1732040964760,0.55,3136.3,3136.1,0.6595]
[1732040966314,3.18857,3136.2,3136.1,0.6595]
[1732040966812,0.55,3136.1,3135.5,0.6595]
[1732040966972,3.18841,3136.4,3135.5,0.6595]
[1732040967178,0.55,3136.5,3135.9,0.31887]
[1732040967389,3.73832,3136.5,3135.9,0.31887]
[1732040967763,0.55,3136.6,3135.9,0.31887]
[1732040968022,3.7382,3136.6,3136.0,0.31887]
[1732040968172,3.1881,3136.7,3136.1,0.31885]
[1732040968384,3.1879,3136.9,3136.3,0.31884]
[1732040968606,3.1879,3136.9,3136.2,0.31885]
[1732040968607,4.042,3137.5,3136.4,0.31883]
[1732040968761,4.042,3137.5,3136.3,0.31884]
[1732040968762,3.18791,3136.9,3136.3,0.31884]
[1732040968966,3.18796,3136.8,3136.3,0.31884]
[1732040969174,3.18791,3136.9,3136.3,0.31884]
[1732040969430,0.55,3136.8,3136.3,0.31883]
[1732040969630,0.55,3136.9,3136.4,0.34160176]
[1732040970105,0.55,3136.9,3136.6,0.31881]
[1732040970261,1.042,3137.5,3136.6,0.31881]
[1732040970262,3.18751,3137.3,3136.7,0.34156029]
[1732040970612,3.18713,3137.7,3137.1,0.31876]
[1732040970760,3.18713,3137.7,3136.9,0.31878]
[1732040970761,3.18713,3137.7,3137.0,0.02351851]
[1732040970959,3.18721,3137.6,3137.0,0.34228851]
[1732040971191,3.1876,3137.2,3136.6,0.3188]
[1732040971408,3.1876,3137.2,3136.7,0.3188]
[1732040971613,3.18686,3137.9,3136.5,5.6595]
[1732040971614,3.18684,3137.9,3136.5,0.6595]
[1732040971904,3.18812,3136.7,3136.5,0.6595]
[1732040972073,3.18816,3136.6,3136.5,0.6595]
[1732040972474,0.55,3136.5,3136.0,0.6595]
[1732040972675,3.18839,3136.4,3136.0,0.6595]
[1732040972882,0.55,3136.5,3136.0,0.97837]
[1732040973069,0.55,3136.5,3136.1,0.31886]
[1732040973477,0.55,3136.1,3135.3,5.0]
[1732040973677,3.18894,3135.9,3135.4,0.6595]
[1732040974176,3.18907,3135.8,3135.4,0.6595]
[1732040974379,0.55,3136.3,3135.4,0.6595]
[1732040974645,0.55,3136.6,3135.7,5.0]
[1732040974791,3.18789,3136.9,3136.1,5.0]
[1732040975004,3.18788,3136.9,3136.1,5.0]
[1732040975200,3.18689,3137.9,3136.1,5.0]
[1732040975201,3.18776,3137.0,3136.1,5.0]
[1732040975402,3.18766,3137.1,3136.1,5.0]
[1732040975605,3.18778,3137.0,3136.2,0.01667712]
[1732040975793,3.18752,3137.3,3136.7,5.0]
[1732040975994,3.18797,3136.8,3136.2,0.03508825]
[1732040976199,3.18684,3137.9,3136.3,5.0]
[1732040976481,3.18773,3137.1,3136.4,0.03726959]
[1732040976685,3.18773,3137.1,3136.4,0.06374742]
[1732040977164,3.18751,3137.3,3136.5,0.6595]
[1732040977279,3.18751,3137.3,3136.6,0.06374335]
[1732040977800,0.55,3137.2,3136.6,0.06374335]
[1732040978105,3.18751,3137.3,3136.7,5.0]
[1732040978319,3.18736,3137.4,3136.8,0.06373928]
[1732040978477,3.1875,3137.3,3136.6,0.0637432]
[1732040979329,3.18729,3137.5,3136.6,0.0637432]
[1732040979532,3.18729,3137.5,3136.9,5.0]